[Event "Early Titled Tuesday Blitz | February 8 2022"]
[White "De Abreu, Roberto N"]
[Black "Vlassov, Nikolai"]
[WhiteFideId "14307472"]
[BlackFideId "4103360"]
[WhiteElo "1996"]
[BlackElo "2407"]
[Result "0-1"]
[Round "03"]
[TimeControl "180+1"]
[Date "2022.02.08"]
[WhiteClock "0:00:10"]
[BlackClock "0:00:39"]

1. Nf3 {[%clk 0:03:00]}  g6 {[%clk 0:02:57]} 2. d4 {[%clk 0:02:59]}  Bg7 {[%clk 0:02:57]} 3. c4 {[%clk 0:02:59]}  Nf6 {[%clk 0:02:56]} 4. g3 {[%clk 0:02:58]}  O-O {[%clk 0:02:55]} 5. Bg2 {[%clk 0:02:59]}  d5 {[%clk 0:02:54]} 6. cxd5 {[%clk 0:02:58]}  Nxd5 {[%clk 0:02:52]} 7. O-O {[%clk 0:02:57]}  Nb6 {[%clk 0:02:52]} 8. Nc3 {[%clk 0:02:55]}  Nc6 {[%clk 0:02:51]} 9. d5 {[%clk 0:02:54]}  Na5 {[%clk 0:02:46]} 10. e4 {[%clk 0:02:54]}  c6 {[%clk 0:02:42]} 11. Bf4 {[%clk 0:02:52]}  cxd5 {[%clk 0:02:39]} 12. exd5 {[%clk 0:02:53]}  Nac4 {[%clk 0:02:38]} 13. b3 {[%clk 0:02:10]}  Bxc3 {[%clk 0:02:20]} 14. bxc4 {[%clk 0:02:11]}  Bxa1 {[%clk 0:02:20]} 15. Qxa1 {[%clk 0:02:12]}  Nxc4 {[%clk 0:02:17]} 16. Bh6 {[%clk 0:02:05]}  f6 {[%clk 0:02:18]} 17. Qd4 {[%clk 0:01:56]}  Nd6 {[%clk 0:02:15]} 18. Bxf8 {[%clk 0:01:14]}  Qxf8 {[%clk 0:02:13]} 19. Qb4 {[%clk 0:01:02]}  Qf7 {[%clk 0:02:04]} 20. Nd4 {[%clk 0:00:58]}  Bd7 {[%clk 0:02:00]} 21. Re1 {[%clk 0:00:45]}  Rc8 {[%clk 0:01:54]} 22. Ne6 {[%clk 0:00:43]}  b6 {[%clk 0:01:27]} 23. h4 {[%clk 0:00:32]}  Rc4 {[%clk 0:01:17]} 24. Qb1 {[%clk 0:00:30]}  b5 {[%clk 0:01:06]} 25. Nd8 {[%clk 0:00:29]}  Qf8 {[%clk 0:00:59]} 26. Nc6 {[%clk 0:00:27]}  Bf5 {[%clk 0:00:50]} 27. Qb3 {[%clk 0:00:14]}  Be4 {[%clk 0:00:42]} 28. f3 {[%clk 0:00:11]}  Bxd5 {[%clk 0:00:42]} 29. Nxe7+ {[%clk 0:00:11]}  Qxe7 {[%clk 0:00:42]} 30. Rxe7 {[%clk 0:00:12]}  Rc1+ {[%clk 0:00:42]} 31. Kh2 {[%clk 0:00:12]}  Bxb3 {[%clk 0:00:42]} 32. axb3 {[%clk 0:00:12]}  Rc2 {[%clk 0:00:41]} 33. Re6 {[%clk 0:00:11]}  Nf5 {[%clk 0:00:41]} 34. b4 {[%clk 0:00:10]}  Rb2 {[%clk 0:00:40]} 35. Ra6 {[%clk 0:00:10]}  Ne3 {[%clk 0:00:39]} 36. Kh3 {[%clk 0:00:10]}  Nxg2 {[%clk 0:00:38]} 37. Rxa7 {[%clk 0:00:10]}  Ne1 {[%clk 0:00:38]} 38. h5 {[%clk 0:00:10]}  Nxf3 {[%clk 0:00:38]} 39. h6 {[%clk 0:00:11]}  Ng5+ {[%clk 0:00:38]} 40. Kg4 {[%clk 0:00:10]}  Rxb4# {[%clk 0:00:39]} 0-1


[Site "https://www.chess.com"]

[Event "Early Titled Tuesday Blitz | February 8 2022"]
[White "Decuigniere, Tom"]
[Black "Maksimenko, Viktor"]
[WhiteFideId "26093820"]
[BlackFideId "13710478"]
[WhiteElo "1997"]
[BlackElo "2269"]
[Result "1/2-1/2"]
[Round "03"]
[TimeControl "180+1"]
[Date "2022.02.08"]
[WhiteClock "0:00:07"]
[BlackClock "0:00:10"]

1. c4 {[%clk 0:03:00]}  e5 {[%clk 0:02:59]} 2. g3 {[%clk 0:03:01]}  c6 {[%clk 0:02:59]} 3. Nf3 {[%clk 0:03:00]}  e4 {[%clk 0:02:58]} 4. Nd4 {[%clk 0:03:01]}  d5 {[%clk 0:02:58]} 5. cxd5 {[%clk 0:03:02]}  Qxd5 {[%clk 0:02:59]} 6. Nc2 {[%clk 0:03:01]}  Nf6 {[%clk 0:02:59]} 7. Bg2 {[%clk 0:03:01]}  h5 {[%clk 0:02:58]} 8. Nc3 {[%clk 0:03:00]}  Qe5 {[%clk 0:02:58]} 9. d4 {[%clk 0:02:54]}  exd3 {[%clk 0:02:58]} 10. Qxd3 {[%clk 0:02:55]}  Bf5 {[%clk 0:02:56]} 11. Qd4 {[%clk 0:02:33]}  Nbd7 {[%clk 0:02:50]} 12. Qxe5+ {[%clk 0:02:28]}  Nxe5 {[%clk 0:02:44]} 13. Nd4 {[%clk 0:02:28]}  Bg6 {[%clk 0:02:40]} 14. Bf4 {[%clk 0:02:28]}  Bd6 {[%clk 0:02:22]} 15. O-O-O {[%clk 0:02:05]}  O-O-O {[%clk 0:02:21]} 16. Nf3 {[%clk 0:01:51]}  Nxf3 {[%clk 0:01:54]} 17. Rxd6 {[%clk 0:01:35]}  Nd4 {[%clk 0:01:12]} 18. Bh3+ {[%clk 0:01:34]}  Bf5 {[%clk 0:01:04]} 19. Rxd4 {[%clk 0:01:05]}  Bxh3 {[%clk 0:01:03]} 20. Rhd1 {[%clk 0:01:06]}  Rxd4 {[%clk 0:01:01]} 21. Rxd4 {[%clk 0:01:07]}  Be6 {[%clk 0:01:00]} 22. b3 {[%clk 0:00:54]}  b6 {[%clk 0:00:27]} 23. Be5 {[%clk 0:00:55]}  Rh6 {[%clk 0:00:21]} 24. Bxf6 {[%clk 0:00:37]}  Rxf6 {[%clk 0:00:20]} 25. Ne4 {[%clk 0:00:38]}  Rg6 {[%clk 0:00:20]} 26. f4 {[%clk 0:00:34]}  c5 {[%clk 0:00:20]} 27. Rd2 {[%clk 0:00:30]}  h4 {[%clk 0:00:19]} 28. f5 {[%clk 0:00:29]}  Bxf5 {[%clk 0:00:20]} 29. Nd6+ {[%clk 0:00:29]}  Rxd6 {[%clk 0:00:20]} 30. Rxd6 {[%clk 0:00:30]}  hxg3 {[%clk 0:00:20]} 31. hxg3 {[%clk 0:00:30]}  Be6 {[%clk 0:00:20]} 32. Rd3 {[%clk 0:00:26]}  Kc7 {[%clk 0:00:21]} 33. Kb2 {[%clk 0:00:25]}  Kc6 {[%clk 0:00:22]} 34. Rd8 {[%clk 0:00:24]}  b5 {[%clk 0:00:21]} 35. Ra8 {[%clk 0:00:22]}  Kb7 {[%clk 0:00:21]} 36. Rg8 {[%clk 0:00:23]}  g6 {[%clk 0:00:21]} 37. Kc3 {[%clk 0:00:22]}  Kc6 {[%clk 0:00:18]} 38. Ra8 {[%clk 0:00:21]}  Kb7 {[%clk 0:00:18]} 39. Rf8 {[%clk 0:00:21]}  Kc6 {[%clk 0:00:19]} 40. a3 {[%clk 0:00:22]}  a5 {[%clk 0:00:18]} 41. b4 {[%clk 0:00:21]}  cxb4+ {[%clk 0:00:17]} 42. axb4 {[%clk 0:00:22]}  a4 {[%clk 0:00:18]} 43. Ra8 {[%clk 0:00:18]}  Kb7 {[%clk 0:00:18]} 44. Rd8 {[%clk 0:00:15]}  a3 {[%clk 0:00:17]} 45. Rd1 {[%clk 0:00:12]}  a2 {[%clk 0:00:17]} 46. Kb2 {[%clk 0:00:11]}  Kc6 {[%clk 0:00:17]} 47. Rd4 {[%clk 0:00:09]}  Bc4 {[%clk 0:00:17]} 48. e3 {[%clk 0:00:07]}  Be6 {[%clk 0:00:17]} 49. g4 {[%clk 0:00:05]}  Kc7 {[%clk 0:00:13]} 50. g5 {[%clk 0:00:05]}  Kc6 {[%clk 0:00:14]} 51. Ka1 {[%clk 0:00:05]}  Kc7 {[%clk 0:00:13]} 52. Kb2 {[%clk 0:00:05]}  Kb6 {[%clk 0:00:13]} 53. Ka1 {[%clk 0:00:06]}  Kc6 {[%clk 0:00:14]} 54. Kb2 {[%clk 0:00:06]}  Bd5 {[%clk 0:00:14]} 55. Ka1 {[%clk 0:00:05]}  Bc4 {[%clk 0:00:14]} 56. Kb2 {[%clk 0:00:05]}  Be6 {[%clk 0:00:14]} 57. Ka1 {[%clk 0:00:05]}  Bd5 {[%clk 0:00:12]} 58. Kb2 {[%clk 0:00:06]}  Bc4 {[%clk 0:00:10]} 59. Ka1 {[%clk 0:00:06]}  Be6 {[%clk 0:00:10]} 60. Kb2 {[%clk 0:00:06]}  Kc7 {[%clk 0:00:10]} 61. Ka1 {[%clk 0:00:06]}  Kb6 {[%clk 0:00:10]} 62. Kb2 {[%clk 0:00:07]}  Kc6 {[%clk 0:00:10]} 1/2-1/2


[Site "https://www.chess.com"]

[Event "Early Titled Tuesday Blitz | February 8 2022"]
[White "Dejmek, Mark"]
[Black "Dzhaparov, Medet"]
[WhiteFideId "2017628"]
[BlackFideId "13803689"]
[WhiteElo "2195"]
[BlackElo "1702"]
[Result "0-1"]
[Round "03"]
[TimeControl "180+1"]
[Date "2022.02.08"]
[WhiteClock "0:00:10"]
[BlackClock "0:01:38"]

1. Nf3 {[%clk 0:03:00]}  Nf6 {[%clk 0:02:59]} 2. g3 {[%clk 0:02:59]}  g6 {[%clk 0:02:59]} 3. d4 {[%clk 0:02:59]}  Bg7 {[%clk 0:03:00]} 4. Bg2 {[%clk 0:03:00]}  O-O {[%clk 0:03:00]} 5. O-O {[%clk 0:03:00]}  d5 {[%clk 0:03:00]} 6. Be3 {[%clk 0:02:59]}  c5 {[%clk 0:03:00]} 7. dxc5 {[%clk 0:02:56]}  Ne4 {[%clk 0:03:00]} 8. Bd4 {[%clk 0:02:35]}  Nc6 {[%clk 0:02:57]} 9. Bxg7 {[%clk 0:02:34]}  Kxg7 {[%clk 0:02:57]} 10. Nbd2 {[%clk 0:02:16]}  Nxc5 {[%clk 0:02:56]} 11. Re1 {[%clk 0:02:07]}  Ne6 {[%clk 0:02:55]} 12. c3 {[%clk 0:02:03]}  Qb6 {[%clk 0:02:54]} 13. Qc2 {[%clk 0:01:52]}  d4 {[%clk 0:02:51]} 14. e3 {[%clk 0:01:38]}  dxe3 {[%clk 0:02:49]} 15. Rxe3 {[%clk 0:01:37]}  Nc5 {[%clk 0:02:44]} 16. Nc4 {[%clk 0:01:35]}  Qa6 {[%clk 0:02:40]} 17. Nce5 {[%clk 0:01:28]}  Nxe5 {[%clk 0:02:33]} 18. Nxe5 {[%clk 0:01:28]}  Bf5 {[%clk 0:02:31]} 19. Qe2 {[%clk 0:01:23]}  Qxe2 {[%clk 0:02:31]} 20. Rxe2 {[%clk 0:01:23]}  Rad8 {[%clk 0:02:31]} 21. b4 {[%clk 0:01:13]}  Na4 {[%clk 0:02:31]} 22. c4 {[%clk 0:01:04]}  f6 {[%clk 0:02:08]} 23. Nf3 {[%clk 0:00:50]}  Kf7 {[%clk 0:02:02]} 24. Rae1 {[%clk 0:00:43]}  Rd7 {[%clk 0:02:00]} 25. Nh4 {[%clk 0:00:37]}  Bd3 {[%clk 0:01:59]} 26. Rd2 {[%clk 0:00:35]}  Rfd8 {[%clk 0:01:56]} 27. c5 {[%clk 0:00:27]}  Bc4 {[%clk 0:01:54]} 28. Rxd7 {[%clk 0:00:24]}  Rxd7 {[%clk 0:01:55]} 29. Nf3 {[%clk 0:00:18]}  Bxa2 {[%clk 0:01:54]} 30. Ra1 {[%clk 0:00:17]}  Bb3 {[%clk 0:01:54]} 31. Bh3 {[%clk 0:00:14]}  Rd1+ {[%clk 0:01:53]} 32. Rxd1 {[%clk 0:00:13]}  Bxd1 {[%clk 0:01:54]} 33. Nd4 {[%clk 0:00:13]}  Nc3 {[%clk 0:01:53]} 34. Bc8 {[%clk 0:00:13]}  b6 {[%clk 0:01:53]} 35. c6 {[%clk 0:00:12]}  Ke8 {[%clk 0:01:42]} 36. Be6 {[%clk 0:00:11]}  Kd8 {[%clk 0:01:41]} 37. Nb5 {[%clk 0:00:10]}  Nxb5 {[%clk 0:01:38]} 0-1


[Site "https://www.chess.com"]

[Event "Early Titled Tuesday Blitz | February 8 2022"]
[White "Delorme, Alban"]
[Black "Suarez Uriel, Adrian"]
[WhiteFideId "623636"]
[BlackFideId "22230874"]
[WhiteElo "2197"]
[BlackElo "2316"]
[Result "1-0"]
[Round "03"]
[TimeControl "180+1"]
[Date "2022.02.08"]
[WhiteClock "0:00:04"]
[BlackClock "0:00:21"]

1. e4 {[%clk 0:03:00]}  c5 {[%clk 0:02:55]} 2. Nf3 {[%clk 0:03:00]}  Nc6 {[%clk 0:02:55]} 3. d4 {[%clk 0:03:00]}  cxd4 {[%clk 0:02:56]} 4. Nxd4 {[%clk 0:03:01]}  g6 {[%clk 0:02:56]} 5. Be3 {[%clk 0:02:58]}  Nf6 {[%clk 0:02:55]} 6. Nxc6 {[%clk 0:02:51]}  bxc6 {[%clk 0:02:54]} 7. e5 {[%clk 0:02:43]}  Nd5 {[%clk 0:02:54]} 8. Bd4 {[%clk 0:02:42]}  Bg7 {[%clk 0:02:52]} 9. c4 {[%clk 0:02:35]}  Nc7 {[%clk 0:02:51]} 10. Nd2 {[%clk 0:02:24]}  O-O {[%clk 0:02:50]} 11. Nf3 {[%clk 0:02:19]}  Ne6 {[%clk 0:02:50]} 12. Bc3 {[%clk 0:02:18]}  d5 {[%clk 0:02:49]} 13. cxd5 {[%clk 0:02:12]}  cxd5 {[%clk 0:02:49]} 14. Be2 {[%clk 0:01:55]}  Nf4 {[%clk 0:02:47]} 15. O-O {[%clk 0:01:53]}  Nxe2+ {[%clk 0:02:48]} 16. Qxe2 {[%clk 0:01:53]}  Bg4 {[%clk 0:02:48]} 17. h3 {[%clk 0:01:51]}  Bxf3 {[%clk 0:02:47]} 18. Qxf3 {[%clk 0:01:52]}  d4 {[%clk 0:02:47]} 19. Rfd1 {[%clk 0:01:45]}  Bxe5 {[%clk 0:02:47]} 20. Qe4 {[%clk 0:01:42]}  Qc7 {[%clk 0:02:31]} 21. Bxd4 {[%clk 0:01:40]}  Bxd4 {[%clk 0:02:31]} 22. Rxd4 {[%clk 0:01:24]}  Rab8 {[%clk 0:02:29]} 23. Qe2 {[%clk 0:00:53]}  e5 {[%clk 0:02:22]} 24. Rc4 {[%clk 0:00:48]}  Qe7 {[%clk 0:02:19]} 25. Re1 {[%clk 0:00:47]}  Rfe8 {[%clk 0:02:19]} 26. Qc2 {[%clk 0:00:45]}  Rb7 {[%clk 0:02:16]} 27. b3 {[%clk 0:00:44]}  h5 {[%clk 0:02:16]} 28. Rc6 {[%clk 0:00:43]}  Rd7 {[%clk 0:02:12]} 29. Qc4 {[%clk 0:00:42]}  Red8 {[%clk 0:02:11]} 30. Rxg6+ {[%clk 0:00:42]}  Kf8 {[%clk 0:02:10]} 31. Rh6 {[%clk 0:00:34]}  Qg5 {[%clk 0:02:10]} 32. Rh8+ {[%clk 0:00:28]}  Kg7 {[%clk 0:02:09]} 33. Rxd8 {[%clk 0:00:27]}  Rxd8 {[%clk 0:02:10]} 34. Qe4 {[%clk 0:00:25]}  Re8 {[%clk 0:02:08]} 35. f4 {[%clk 0:00:21]}  Qh6 {[%clk 0:01:42]} 36. fxe5 {[%clk 0:00:20]}  Re6 {[%clk 0:01:43]} 37. Re3 {[%clk 0:00:19]}  Rg6 {[%clk 0:01:42]} 38. Rf3 {[%clk 0:00:17]}  Qg5 {[%clk 0:01:42]} 39. Qe2 {[%clk 0:00:14]}  h4 {[%clk 0:01:40]} 40. Qf2 {[%clk 0:00:14]}  Qc1+ {[%clk 0:01:28]} 41. Kh2 {[%clk 0:00:14]}  Qc7 {[%clk 0:01:28]} 42. Qe3 {[%clk 0:00:12]}  Qe7 {[%clk 0:01:23]} 43. Qf4 {[%clk 0:00:11]}  Qe6 {[%clk 0:01:21]} 44. Qf5 {[%clk 0:00:10]}  Qd5 {[%clk 0:01:17]} 45. e6 {[%clk 0:00:06]}  Qxe6 {[%clk 0:01:03]} 46. Qxe6 {[%clk 0:00:06]}  Rxe6 {[%clk 0:01:03]} 47. Rf4 {[%clk 0:00:06]}  Re2 {[%clk 0:01:03]} 48. Ra4 {[%clk 0:00:07]}  Kg6 {[%clk 0:01:01]} 49. Rxa7 {[%clk 0:00:07]}  f5 {[%clk 0:01:02]} 50. b4 {[%clk 0:00:05]}  Kg5 {[%clk 0:01:02]} 51. b5 {[%clk 0:00:05]}  Kf4 {[%clk 0:01:02]} 52. b6 {[%clk 0:00:06]}  Rb2 {[%clk 0:01:02]} 53. b7 {[%clk 0:00:05]}  Ke3 {[%clk 0:01:02]} 54. a3 {[%clk 0:00:04]}  f4 {[%clk 0:01:03]} 55. Ra4 {[%clk 0:00:05]}  f3 {[%clk 0:01:03]} 56. Rb4 {[%clk 0:00:04]}  Rxb4 {[%clk 0:00:53]} 57. axb4 {[%clk 0:00:04]}  f2 {[%clk 0:00:54]} 58. b8=Q {[%clk 0:00:05]}  f1=Q {[%clk 0:00:55]} 59. Qe5+ {[%clk 0:00:04]}  Kd2 {[%clk 0:00:53]} 60. Qg5+ {[%clk 0:00:04]}  Kc3 {[%clk 0:00:51]} 61. Qxh4 {[%clk 0:00:04]}  Qe2 {[%clk 0:00:49]} 62. Qg3+ {[%clk 0:00:03]}  Kb2 {[%clk 0:00:46]} 63. b5 {[%clk 0:00:03]}  Qxb5 {[%clk 0:00:46]} 64. h4 {[%clk 0:00:04]}  Qh5 {[%clk 0:00:44]} 65. Kh3 {[%clk 0:00:04]}  Qf5+ {[%clk 0:00:43]} 66. Qg4 {[%clk 0:00:05]}  Qd3+ {[%clk 0:00:44]} 67. Qg3 {[%clk 0:00:06]}  Qf5+ {[%clk 0:00:44]} 68. Kh2 {[%clk 0:00:06]}  Kc2 {[%clk 0:00:43]} 69. Qf3 {[%clk 0:00:07]}  Qe5+ {[%clk 0:00:42]} 70. g3 {[%clk 0:00:07]}  Kb2 {[%clk 0:00:37]} 71. Kh3 {[%clk 0:00:07]}  Qe6+ {[%clk 0:00:37]} 72. Qg4 {[%clk 0:00:08]}  Qa6 {[%clk 0:00:35]} 73. Qb4+ {[%clk 0:00:08]}  Kc2 {[%clk 0:00:34]} 74. Qc5+ {[%clk 0:00:08]}  Kd2 {[%clk 0:00:34]} 75. Qf2+ {[%clk 0:00:08]}  Kc3 {[%clk 0:00:33]} 76. h5 {[%clk 0:00:08]}  Qe6+ {[%clk 0:00:33]} 77. g4 {[%clk 0:00:08]}  Qc6 {[%clk 0:00:27]} 78. Qg2 {[%clk 0:00:06]}  Qe6 {[%clk 0:00:24]} 79. Qf3+ {[%clk 0:00:06]}  Kb2 {[%clk 0:00:22]} 80. Kh4 {[%clk 0:00:04]}  Qe1+ {[%clk 0:00:21]} 81. Kg5 {[%clk 0:00:04]}  Qe7+ {[%clk 0:00:21]} 82. Qf6+ {[%clk 0:00:04]} 1-0


[Site "https://www.chess.com"]

[Event "Early Titled Tuesday Blitz | February 8 2022"]
[White "Dew, Brian"]
[Black "Xie, Bryan"]
[WhiteFideId "6000495"]
[BlackFideId "30941296"]
[WhiteElo "2118"]
[BlackElo "1899"]
[Result "1-0"]
[Round "03"]
[TimeControl "180+1"]
[Date "2022.02.08"]
[WhiteClock "0:00:01"]
[BlackClock "0:00:01"]

1. e4 {[%clk 0:02:57]}  c5 {[%clk 0:02:55]} 2. Nf3 {[%clk 0:02:55]}  e6 {[%clk 0:02:54]} 3. g3 {[%clk 0:02:49]}  Nc6 {[%clk 0:02:54]} 4. Bg2 {[%clk 0:02:49]}  Qc7 {[%clk 0:02:54]} 5. O-O {[%clk 0:02:48]}  Nf6 {[%clk 0:02:55]} 6. Re1 {[%clk 0:02:48]}  d6 {[%clk 0:02:51]} 7. c3 {[%clk 0:02:47]}  Be7 {[%clk 0:02:48]} 8. d4 {[%clk 0:02:47]}  cxd4 {[%clk 0:02:49]} 9. cxd4 {[%clk 0:02:48]}  d5 {[%clk 0:02:49]} 10. e5 {[%clk 0:02:48]}  Nd7 {[%clk 0:02:47]} 11. Nc3 {[%clk 0:02:46]}  b6 {[%clk 0:02:43]} 12. Bg5 {[%clk 0:02:43]}  Bb4 {[%clk 0:02:37]} 13. Rc1 {[%clk 0:02:39]}  Ba6 {[%clk 0:02:37]} 14. a3 {[%clk 0:02:38]}  Bxc3 {[%clk 0:02:13]} 15. Rxc3 {[%clk 0:02:39]}  Rc8 {[%clk 0:02:12]} 16. Qa4 {[%clk 0:02:25]}  Bb7 {[%clk 0:02:01]} 17. Rec1 {[%clk 0:02:25]}  h6 {[%clk 0:01:59]} 18. Be3 {[%clk 0:02:17]}  Ndb8 {[%clk 0:01:51]} 19. b4 {[%clk 0:02:12]}  Qd7 {[%clk 0:01:25]} 20. Bf1 {[%clk 0:01:43]}  O-O {[%clk 0:01:08]} 21. Qd1 {[%clk 0:00:45]}  Ne7 {[%clk 0:01:03]} 22. Bd3 {[%clk 0:00:35]}  Rxc3 {[%clk 0:00:57]} 23. Rxc3 {[%clk 0:00:36]}  Rc8 {[%clk 0:00:58]} 24. Qc2 {[%clk 0:00:30]}  Ba6 {[%clk 0:00:42]} 25. Rxc8+ {[%clk 0:00:19]}  Nxc8 {[%clk 0:00:43]} 26. b5 {[%clk 0:00:18]}  Bb7 {[%clk 0:00:40]} 27. a4 {[%clk 0:00:18]}  Ne7 {[%clk 0:00:39]} 28. Bd2 {[%clk 0:00:18]}  a5 {[%clk 0:00:35]} 29. Bc1 {[%clk 0:00:17]}  Qd8 {[%clk 0:00:29]} 30. Ba3 {[%clk 0:00:17]}  Kf8 {[%clk 0:00:25]} 31. Bd6 {[%clk 0:00:16]}  Nd7 {[%clk 0:00:25]} 32. h4 {[%clk 0:00:06]}  Ke8 {[%clk 0:00:23]} 33. Be2 {[%clk 0:00:04]}  Nf8 {[%clk 0:00:20]} 34. Bc7 {[%clk 0:00:02]}  Qc8 {[%clk 0:00:20]} 35. Bd3 {[%clk 0:00:01]}  Kd7 {[%clk 0:00:20]} 36. Bxb6 {[%clk 0:00:01]}  Qb8 {[%clk 0:00:09]} 37. Bxa5 {[%clk 0:00:01]}  f5 {[%clk 0:00:09]} 38. Bb4 {[%clk 0:00:01]}  Nfg6 {[%clk 0:00:04]} 39. Qc5 {[%clk 0:00:01]}  Ke8 {[%clk 0:00:03]} 40. a5 {[%clk 0:00:01]}  Kf7 {[%clk 0:00:02]} 41. b6 {[%clk 0:00:01]}  Nc8 {[%clk 0:00:01]} 42. a6 {[%clk 0:00:01]}  Bxa6 {[%clk 0:00:01]} 43. Bxa6 {[%clk 0:00:02]}  Nxb6 {[%clk 0:00:01]} 44. Qb5 {[%clk 0:00:01]} 1-0


[Site "https://www.chess.com"]

[Event "Early Titled Tuesday Blitz | February 8 2022"]
[White "Dilmukhametov, Artur"]
[Black "Aloma Vidal, Robert"]
[WhiteFideId "24179922"]
[BlackFideId "2260409"]
[WhiteElo "2266"]
[BlackElo "2435"]
[Result "1-0"]
[Round "03"]
[TimeControl "180+1"]
[Date "2022.02.08"]
[WhiteClock "0:00:42"]
[BlackClock "0:00:32"]

1. e4 {[%clk 0:03:00]}  e5 {[%clk 0:02:59]} 2. Nf3 {[%clk 0:03:00]}  Nf6 {[%clk 0:03:00]} 3. d4 {[%clk 0:02:59]}  Nxe4 {[%clk 0:02:51]} 4. Bd3 {[%clk 0:02:58]}  d5 {[%clk 0:02:51]} 5. Nxe5 {[%clk 0:02:58]}  Nd7 {[%clk 0:02:51]} 6. Nxd7 {[%clk 0:02:58]}  Bxd7 {[%clk 0:02:51]} 7. O-O {[%clk 0:02:59]}  Qf6 {[%clk 0:02:46]} 8. c3 {[%clk 0:02:51]}  O-O-O {[%clk 0:02:41]} 9. Nd2 {[%clk 0:02:50]}  Nxd2 {[%clk 0:02:33]} 10. Bxd2 {[%clk 0:02:51]}  Bd6 {[%clk 0:02:28]} 11. f4 {[%clk 0:02:48]}  h5 {[%clk 0:02:18]} 12. Qf3 {[%clk 0:02:45]}  c6 {[%clk 0:02:18]} 13. b4 {[%clk 0:02:39]}  Bg4 {[%clk 0:02:10]} 14. Qf2 {[%clk 0:02:38]}  Bf5 {[%clk 0:02:09]} 15. Bxf5+ {[%clk 0:02:27]}  Qxf5 {[%clk 0:02:09]} 16. Qf3 {[%clk 0:02:25]}  h4 {[%clk 0:02:05]} 17. h3 {[%clk 0:02:21]}  Rde8 {[%clk 0:01:56]} 18. Rae1 {[%clk 0:02:14]}  Kd7 {[%clk 0:01:49]} 19. Qg4 {[%clk 0:02:13]}  Qxg4 {[%clk 0:01:49]} 20. hxg4 {[%clk 0:02:13]}  a5 {[%clk 0:01:39]} 21. Rxe8 {[%clk 0:02:04]}  Rxe8 {[%clk 0:01:40]} 22. a3 {[%clk 0:01:36]}  Ra8 {[%clk 0:01:26]} 23. Kf2 {[%clk 0:01:31]}  axb4 {[%clk 0:01:26]} 24. axb4 {[%clk 0:01:31]}  Ke6 {[%clk 0:01:12]} 25. Ke3 {[%clk 0:01:27]}  f5 {[%clk 0:01:11]} 26. g5 {[%clk 0:01:20]}  Kf7 {[%clk 0:01:06]} 27. Rh1 {[%clk 0:01:15]}  Rh8 {[%clk 0:01:04]} 28. Kf3 {[%clk 0:01:10]}  Kg6 {[%clk 0:01:03]} 29. Be1 {[%clk 0:01:10]}  Ra8 {[%clk 0:00:53]} 30. Rxh4 {[%clk 0:01:05]}  Ra3 {[%clk 0:00:52]} 31. Ke2 {[%clk 0:01:03]}  Ra2+ {[%clk 0:00:48]} 32. Bd2 {[%clk 0:01:02]}  Rb2 {[%clk 0:00:40]} 33. Kd3 {[%clk 0:01:02]}  Rb1 {[%clk 0:00:40]} 34. Rh8 {[%clk 0:00:53]}  Rg1 {[%clk 0:00:40]} 35. Rd8 {[%clk 0:00:48]}  Be7 {[%clk 0:00:38]} 36. Rd7 {[%clk 0:00:46]}  Bf8 {[%clk 0:00:37]} 37. Rxb7 {[%clk 0:00:46]}  Rxg2 {[%clk 0:00:38]} 38. Rb6 {[%clk 0:00:45]}  Rg3+ {[%clk 0:00:38]} 39. Kc2 {[%clk 0:00:44]}  Kh5 {[%clk 0:00:35]} 40. Rxc6 {[%clk 0:00:44]}  Rg2 {[%clk 0:00:35]} 41. b5 {[%clk 0:00:43]}  Kg4 {[%clk 0:00:32]} 42. b6 {[%clk 0:00:42]} 1-0


[Site "https://www.chess.com"]

[Event "Early Titled Tuesday Blitz | February 8 2022"]
[White "Dounis, Alexandros"]
[Black "Rasulov, Vugar"]
[WhiteFideId "4213238"]
[BlackFideId "13402390"]
[WhiteElo "2195"]
[BlackElo "2560"]
[Result "1-0"]
[Round "03"]
[TimeControl "180+1"]
[Date "2022.02.08"]
[WhiteClock "0:00:10"]
[BlackClock "0:00:44"]

1. Nf3 {[%clk 0:02:52]}  Nf6 {[%clk 0:03:00]} 2. g3 {[%clk 0:02:52]}  g6 {[%clk 0:03:00]} 3. Bg2 {[%clk 0:02:53]}  Bg7 {[%clk 0:03:01]} 4. O-O {[%clk 0:02:54]}  O-O {[%clk 0:03:02]} 5. d4 {[%clk 0:02:54]}  d5 {[%clk 0:03:02]} 6. c4 {[%clk 0:02:54]}  c6 {[%clk 0:03:02]} 7. b3 {[%clk 0:02:54]}  dxc4 {[%clk 0:03:00]} 8. bxc4 {[%clk 0:02:53]}  c5 {[%clk 0:03:01]} 9. Bb2 {[%clk 0:02:52]}  Qb6 {[%clk 0:03:00]} 10. Qb3 {[%clk 0:02:52]}  Ne4 {[%clk 0:03:00]} 11. Nc3 {[%clk 0:02:30]}  Nxc3 {[%clk 0:02:48]} 12. Bxc3 {[%clk 0:02:30]}  Nc6 {[%clk 0:02:48]} 13. e3 {[%clk 0:02:10]}  Bf5 {[%clk 0:02:40]} 14. Rac1 {[%clk 0:01:56]}  Be4 {[%clk 0:02:38]} 15. d5 {[%clk 0:01:47]}  Qxb3 {[%clk 0:02:32]} 16. axb3 {[%clk 0:01:47]}  Bxc3 {[%clk 0:02:29]} 17. Rxc3 {[%clk 0:01:46]}  Nb4 {[%clk 0:02:29]} 18. Nd2 {[%clk 0:01:36]}  Bxg2 {[%clk 0:02:27]} 19. Kxg2 {[%clk 0:01:36]}  b6 {[%clk 0:02:25]} 20. Ra1 {[%clk 0:01:34]}  a5 {[%clk 0:02:24]} 21. Ne4 {[%clk 0:01:31]}  Rfd8 {[%clk 0:02:23]} 22. Kf3 {[%clk 0:01:26]}  Kg7 {[%clk 0:02:19]} 23. Ke2 {[%clk 0:01:25]}  Rd7 {[%clk 0:02:18]} 24. Rcc1 {[%clk 0:01:19]}  Rad8 {[%clk 0:02:18]} 25. Rd1 {[%clk 0:01:13]}  Na6 {[%clk 0:02:16]} 26. Rd2 {[%clk 0:01:05]}  Nc7 {[%clk 0:02:15]} 27. Rad1 {[%clk 0:01:04]}  Ne8 {[%clk 0:02:16]} 28. Nc3 {[%clk 0:00:59]}  Nd6 {[%clk 0:02:11]} 29. e4 {[%clk 0:00:59]}  Rb7 {[%clk 0:02:07]} 30. e5 {[%clk 0:00:54]}  Nf5 {[%clk 0:02:07]} 31. Nb5 {[%clk 0:00:54]}  h5 {[%clk 0:02:04]} 32. f4 {[%clk 0:00:38]}  f6 {[%clk 0:01:59]} 33. Kf3 {[%clk 0:00:35]}  g5 {[%clk 0:01:55]} 34. Ke4 {[%clk 0:00:34]}  Kg6 {[%clk 0:01:56]} 35. d6 {[%clk 0:00:30]}  exd6 {[%clk 0:01:49]} 36. Nxd6 {[%clk 0:00:28]}  Rbd7 {[%clk 0:01:48]} 37. Rd5 {[%clk 0:00:25]}  Ne7 {[%clk 0:01:46]} 38. f5+ {[%clk 0:00:24]}  Kh7 {[%clk 0:01:37]} 39. Ne8 {[%clk 0:00:22]}  Nxd5 {[%clk 0:01:36]} 40. Rxd5 {[%clk 0:00:20]}  Kh6 {[%clk 0:01:07]} 41. Rxd7 {[%clk 0:00:17]}  Rxd7 {[%clk 0:01:07]} 42. e6 {[%clk 0:00:16]}  Rd4+ {[%clk 0:01:03]} 43. Ke3 {[%clk 0:00:14]}  Rd1 {[%clk 0:01:01]} 44. Nxf6 {[%clk 0:00:13]}  Rf1 {[%clk 0:00:58]} 45. g4 {[%clk 0:00:12]}  hxg4 {[%clk 0:00:53]} 46. e7 {[%clk 0:00:11]}  Re1+ {[%clk 0:00:46]} 47. Kf2 {[%clk 0:00:11]}  Rxe7 {[%clk 0:00:42]} 48. Ng8+ {[%clk 0:00:11]}  Kg7 {[%clk 0:00:43]} 49. Nxe7 {[%clk 0:00:12]}  Kf6 {[%clk 0:00:44]} 50. Nd5+ {[%clk 0:00:12]}  Kxf5 {[%clk 0:00:45]} 51. Nxb6 {[%clk 0:00:13]}  Ke4 {[%clk 0:00:45]} 52. Na4 {[%clk 0:00:11]}  Kd4 {[%clk 0:00:44]} 53. Kg3 {[%clk 0:00:12]}  Kd3 {[%clk 0:00:42]} 54. Nxc5+ {[%clk 0:00:11]}  Kc2 {[%clk 0:00:42]} 55. Kxg4 {[%clk 0:00:11]}  Kc3 {[%clk 0:00:43]} 56. Kxg5 {[%clk 0:00:11]}  Kb4 {[%clk 0:00:44]} 57. Nb7 {[%clk 0:00:10]}  a4 {[%clk 0:00:44]} 58. bxa4 {[%clk 0:00:10]} 1-0


[Site "https://www.chess.com"]